[Event "Early Titled Tuesday Blitz | February 8 2022"]
[White "Orozbaev, Eldiar"]
[Black "Chigaev, Maksim"]
[WhiteFideId "13802240"]
[BlackFideId "4108116"]
[WhiteElo "2050"]
[BlackElo "2502"]
[Result "1-0"]
[Round "09"]
[TimeControl "180+1"]
[Date "2022.02.08"]
[WhiteClock "0:01:11"]
[BlackClock "0:00:04"]

1. e4 {[%clk 0:03:00]}  c5 {[%clk 0:02:56]} 2. c3 {[%clk 0:03:00]}  d5 {[%clk 0:02:56]} 3. exd5 {[%clk 0:03:00]}  Nf6 {[%clk 0:02:56]} 4. Nf3 {[%clk 0:03:01]}  Nxd5 {[%clk 0:02:56]} 5. d4 {[%clk 0:03:01]}  cxd4 {[%clk 0:02:54]} 6. Nxd4 {[%clk 0:03:02]}  e6 {[%clk 0:02:42]} 7. Be2 {[%clk 0:02:58]}  Be7 {[%clk 0:02:41]} 8. O-O {[%clk 0:02:58]}  O-O {[%clk 0:02:42]} 9. Bf3 {[%clk 0:02:58]}  Nb6 {[%clk 0:02:31]} 10. Bf4 {[%clk 0:02:57]}  N8d7 {[%clk 0:02:28]} 11. Bg3 {[%clk 0:02:54]}  Nf6 {[%clk 0:02:22]} 12. Nd2 {[%clk 0:02:52]}  a6 {[%clk 0:02:17]} 13. Qe2 {[%clk 0:02:51]}  Bd6 {[%clk 0:02:10]} 14. Rfd1 {[%clk 0:02:47]}  Bxg3 {[%clk 0:02:09]} 15. hxg3 {[%clk 0:02:48]}  Qe7 {[%clk 0:02:08]} 16. a4 {[%clk 0:02:43]}  Qc7 {[%clk 0:02:01]} 17. a5 {[%clk 0:02:41]}  Nbd5 {[%clk 0:01:57]} 18. Ne4 {[%clk 0:02:39]}  Bd7 {[%clk 0:01:53]} 19. c4 {[%clk 0:02:26]}  Nxe4 {[%clk 0:01:47]} 20. cxd5 {[%clk 0:02:25]}  exd5 {[%clk 0:01:45]} 21. Bxe4 {[%clk 0:02:22]}  dxe4 {[%clk 0:01:46]} 22. Qxe4 {[%clk 0:02:22]}  Rae8 {[%clk 0:01:43]} 23. Qf3 {[%clk 0:02:22]}  Bc8 {[%clk 0:01:27]} 24. b4 {[%clk 0:02:16]}  Qe5 {[%clk 0:01:20]} 25. Rac1 {[%clk 0:02:13]}  h6 {[%clk 0:01:16]} 26. Rc5 {[%clk 0:02:10]}  Qe4 {[%clk 0:00:59]} 27. Qxe4 {[%clk 0:02:02]}  Rxe4 {[%clk 0:01:00]} 28. f3 {[%clk 0:02:03]}  Re7 {[%clk 0:00:57]} 29. Rdc1 {[%clk 0:02:02]}  Be6 {[%clk 0:00:39]} 30. Rc7 {[%clk 0:01:56]}  Rxc7 {[%clk 0:00:27]} 31. Rxc7 {[%clk 0:01:57]}  Bc8 {[%clk 0:00:25]} 32. Nb3 {[%clk 0:01:54]}  Be6 {[%clk 0:00:19]} 33. Nc5 {[%clk 0:01:53]}  Bd5 {[%clk 0:00:19]} 34. Kf2 {[%clk 0:01:31]}  Rb8 {[%clk 0:00:20]} 35. Ke3 {[%clk 0:01:28]}  g5 {[%clk 0:00:14]} 36. Nd7 {[%clk 0:01:26]}  Rd8 {[%clk 0:00:04]} 37. Nf6+ {[%clk 0:01:26]}  Kg7 {[%clk 0:00:05]} 38. Nxd5 {[%clk 0:01:26]}  Rxd5 {[%clk 0:00:06]} 39. Rxb7 {[%clk 0:01:27]}  Re5+ {[%clk 0:00:06]} 40. Kd4 {[%clk 0:01:26]}  Re2 {[%clk 0:00:07]} 41. Rb6 {[%clk 0:01:25]}  Rxg2 {[%clk 0:00:07]} 42. g4 {[%clk 0:01:26]}  f5 {[%clk 0:00:07]} 43. gxf5 {[%clk 0:01:24]}  h5 {[%clk 0:00:07]} 44. Rxa6 {[%clk 0:01:21]}  h4 {[%clk 0:00:08]} 45. Rc6 {[%clk 0:01:14]}  h3 {[%clk 0:00:08]} 46. Rc1 {[%clk 0:01:14]}  Kf6 {[%clk 0:00:08]} 47. a6 {[%clk 0:01:13]}  Ra2 {[%clk 0:00:05]} 48. b5 {[%clk 0:01:12]}  Kxf5 {[%clk 0:00:06]} 49. Rh1 {[%clk 0:01:12]}  g4 {[%clk 0:00:04]} 50. fxg4+ {[%clk 0:01:11]}  Kxg4 {[%clk 0:00:05]} 51. Kc5 {[%clk 0:01:11]}  h2 {[%clk 0:00:04]} 52. Kb6 {[%clk 0:01:11]} 1-0


[Site "https://www.chess.com"]

[Event "Early Titled Tuesday Blitz | February 8 2022"]
[White "Pantzar, Milton"]
[Black "Ter-Sahakyan, Samvel"]
[WhiteFideId "1721003"]
[BlackFideId "13302531"]
[WhiteElo "2340"]
[BlackElo "2592"]
[Result "0-1"]
[Round "09"]
[TimeControl "180+1"]
[Date "2022.02.08"]
[WhiteClock "0:00:01"]
[BlackClock "0:00:35"]

1. d4 {[%clk 0:03:00]}  Nf6 {[%clk 0:02:59]} 2. Nf3 {[%clk 0:02:54]}  d5 {[%clk 0:02:59]} 3. c4 {[%clk 0:02:50]}  e6 {[%clk 0:02:59]} 4. g3 {[%clk 0:02:45]}  Bb4+ {[%clk 0:02:54]} 5. Bd2 {[%clk 0:02:45]}  a5 {[%clk 0:02:54]} 6. a3 {[%clk 0:02:37]}  Be7 {[%clk 0:02:51]} 7. Bg2 {[%clk 0:02:36]}  O-O {[%clk 0:02:43]} 8. Qc2 {[%clk 0:02:34]}  dxc4 {[%clk 0:02:40]} 9. Qxc4 {[%clk 0:02:34]}  b6 {[%clk 0:02:40]} 10. Qc2 {[%clk 0:02:33]}  Bb7 {[%clk 0:02:36]} 11. O-O {[%clk 0:02:32]}  Nbd7 {[%clk 0:02:36]} 12. Rd1 {[%clk 0:02:30]}  Rc8 {[%clk 0:02:18]} 13. Nc3 {[%clk 0:02:30]}  c5 {[%clk 0:02:18]} 14. Bg5 {[%clk 0:02:19]}  cxd4 {[%clk 0:02:04]} 15. Nxd4 {[%clk 0:02:10]}  Bxg2 {[%clk 0:02:03]} 16. Kxg2 {[%clk 0:02:11]}  Qc7 {[%clk 0:01:57]} 17. Qd3 {[%clk 0:01:58]}  Ne5 {[%clk 0:01:54]} 18. Qb5 {[%clk 0:01:51]}  Qb7+ {[%clk 0:01:54]} 19. f3 {[%clk 0:01:50]}  Rc5 {[%clk 0:01:50]} 20. Qb3 {[%clk 0:01:43]}  Nxf3 {[%clk 0:01:44]} 21. Nxf3 {[%clk 0:01:26]}  Rxg5 {[%clk 0:01:43]} 22. Rd3 {[%clk 0:01:01]}  Rc5 {[%clk 0:01:31]} 23. Na4 {[%clk 0:00:54]}  Re5 {[%clk 0:01:27]} 24. Kf2 {[%clk 0:00:41]}  Rf5 {[%clk 0:01:16]} 25. Qxb6 {[%clk 0:00:38]}  Qxb6+ {[%clk 0:01:13]} 26. Nxb6 {[%clk 0:00:38]}  Bc5+ {[%clk 0:01:13]} 27. Kg2 {[%clk 0:00:36]}  Bxb6 {[%clk 0:01:13]} 28. Rc1 {[%clk 0:00:34]}  h6 {[%clk 0:01:11]} 29. Rc6 {[%clk 0:00:32]}  Rb8 {[%clk 0:01:10]} 30. Rb3 {[%clk 0:00:30]}  Nd7 {[%clk 0:00:50]} 31. Rd6 {[%clk 0:00:30]}  Rd5 {[%clk 0:00:50]} 32. Rxd5 {[%clk 0:00:23]}  exd5 {[%clk 0:00:51]} 33. Rb5 {[%clk 0:00:24]}  Bc5 {[%clk 0:00:45]} 34. Rxb8+ {[%clk 0:00:17]}  Nxb8 {[%clk 0:00:45]} 35. Ne5 {[%clk 0:00:17]}  Kf8 {[%clk 0:00:41]} 36. Nd3 {[%clk 0:00:17]}  Bb6 {[%clk 0:00:41]} 37. b4 {[%clk 0:00:18]}  axb4 {[%clk 0:00:41]} 38. Nxb4 {[%clk 0:00:17]}  Bc5 {[%clk 0:00:39]} 39. Nxd5 {[%clk 0:00:15]}  Bxa3 {[%clk 0:00:38]} 40. Kf3 {[%clk 0:00:13]}  Bd6 {[%clk 0:00:39]} 41. Nc3 {[%clk 0:00:13]}  Nc6 {[%clk 0:00:38]} 42. Ne4 {[%clk 0:00:13]}  Be7 {[%clk 0:00:38]} 43. Nc3 {[%clk 0:00:13]}  g6 {[%clk 0:00:38]} 44. Nd5 {[%clk 0:00:13]}  Bd8 {[%clk 0:00:38]} 45. Nc3 {[%clk 0:00:09]}  Kg7 {[%clk 0:00:39]} 46. e3 {[%clk 0:00:09]}  h5 {[%clk 0:00:39]} 47. Nd5 {[%clk 0:00:08]}  Ne5+ {[%clk 0:00:39]} 48. Ke2 {[%clk 0:00:08]}  Ng4 {[%clk 0:00:39]} 49. h3 {[%clk 0:00:08]}  Nf6 {[%clk 0:00:39]} 50. Nf4 {[%clk 0:00:08]}  Bc7 {[%clk 0:00:40]} 51. Kf3 {[%clk 0:00:07]}  Bxf4 {[%clk 0:00:40]} 52. exf4 {[%clk 0:00:07]}  Kf8 {[%clk 0:00:39]} 53. g4 {[%clk 0:00:07]}  hxg4+ {[%clk 0:00:38]} 54. hxg4 {[%clk 0:00:08]}  Ke7 {[%clk 0:00:39]} 55. Ke3 {[%clk 0:00:09]}  Ke6 {[%clk 0:00:38]} 56. Kf3 {[%clk 0:00:08]}  Nd5 {[%clk 0:00:36]} 57. Ke4 {[%clk 0:00:08]}  Ne7 {[%clk 0:00:36]} 58. Ke3 {[%clk 0:00:06]}  Kd5 {[%clk 0:00:35]} 59. Kd3 {[%clk 0:00:06]}  Ng8 {[%clk 0:00:35]} 60. Ke3 {[%clk 0:00:04]}  Nf6 {[%clk 0:00:34]} 61. Kf3 {[%clk 0:00:04]}  Kd4 {[%clk 0:00:34]} 62. f5 {[%clk 0:00:02]}  g5 {[%clk 0:00:34]} 63. Kg3 {[%clk 0:00:02]}  Ke4 {[%clk 0:00:34]} 64. Kh3 {[%clk 0:00:01]}  Kf4 {[%clk 0:00:35]} 0-1


[Site "https://www.chess.com"]

[Event "Early Titled Tuesday Blitz | February 8 2022"]
[White "Papp, Petra"]
[Black "Todorovic, Bojan"]
[WhiteFideId "739049"]
[BlackFideId "917087"]
[WhiteElo "2259"]
[BlackElo "2266"]
[Result "0-1"]
[Round "09"]
[TimeControl "180+1"]
[Date "2022.02.08"]
[WhiteClock "0:00:02"]
[BlackClock "0:00:27"]

1. d4 {[%clk 0:03:00]}  g6 {[%clk 0:02:58]} 2. e4 {[%clk 0:02:56]}  Bg7 {[%clk 0:02:58]} 3. Nc3 {[%clk 0:02:55]}  d6 {[%clk 0:02:57]} 4. Be3 {[%clk 0:02:55]}  a6 {[%clk 0:02:57]} 5. f3 {[%clk 0:02:52]}  Nc6 {[%clk 0:02:52]} 6. Qd2 {[%clk 0:02:51]}  e5 {[%clk 0:02:51]} 7. Nge2 {[%clk 0:02:51]}  Nf6 {[%clk 0:02:47]} 8. O-O-O {[%clk 0:02:50]}  O-O {[%clk 0:02:44]} 9. Kb1 {[%clk 0:02:49]}  b5 {[%clk 0:02:41]} 10. h4 {[%clk 0:02:46]}  Nxd4 {[%clk 0:02:09]} 11. Nxd4 {[%clk 0:02:41]}  exd4 {[%clk 0:02:08]} 12. Bxd4 {[%clk 0:02:40]}  Be6 {[%clk 0:02:02]} 13. g4 {[%clk 0:02:31]}  b4 {[%clk 0:01:59]} 14. Ne2 {[%clk 0:02:28]}  c5 {[%clk 0:01:59]} 15. Be3 {[%clk 0:02:26]}  Qa5 {[%clk 0:01:56]} 16. Nc1 {[%clk 0:02:25]}  d5 {[%clk 0:01:47]} 17. Nb3 {[%clk 0:02:19]}  Qc7 {[%clk 0:01:39]} 18. Nxc5 {[%clk 0:02:03]}  dxe4 {[%clk 0:01:38]} 19. Nxe6 {[%clk 0:02:00]}  fxe6 {[%clk 0:01:38]} 20. Bh3 {[%clk 0:01:46]}  Nd5 {[%clk 0:01:33]} 21. fxe4 {[%clk 0:01:35]}  Nc3+ {[%clk 0:01:32]} 22. bxc3 {[%clk 0:01:11]}  bxc3 {[%clk 0:01:32]} 23. Qc1 {[%clk 0:01:11]}  Rab8+ {[%clk 0:01:28]} 24. Ka1 {[%clk 0:01:10]}  Rb2 {[%clk 0:01:28]} 25. g5 {[%clk 0:01:09]}  Qc6 {[%clk 0:01:15]} 26. Bd4 {[%clk 0:01:01]}  Rfb8 {[%clk 0:01:04]} 27. Bc5 {[%clk 0:00:32]}  Qxc5 {[%clk 0:00:55]} 28. Bxe6+ {[%clk 0:00:31]}  Kh8 {[%clk 0:00:55]} 29. Rd7 {[%clk 0:00:20]}  Qc6 {[%clk 0:00:37]} 30. Rhd1 {[%clk 0:00:04]}  Qxe6 {[%clk 0:00:29]} 31. Rd8+ {[%clk 0:00:04]}  Rxd8 {[%clk 0:00:28]} 32. Rxd8+ {[%clk 0:00:04]}  Bf8 {[%clk 0:00:28]} 33. Rxf8+ {[%clk 0:00:04]}  Kg7 {[%clk 0:00:28]} 34. Qxb2 {[%clk 0:00:01]}  cxb2+ {[%clk 0:00:27]} 35. Kb1 {[%clk 0:00:02]}  Kxf8 {[%clk 0:00:27]} 0-1


[Site "https://www.chess.com"]

[Event "Early Titled Tuesday Blitz | February 8 2022"]
[White "Piesik, Piotr"]
[Black "Dobre, Claudiu-Cristian"]
[WhiteFideId "1136194"]
[BlackFideId "1211854"]
[WhiteElo "2232"]
[BlackElo "2207"]
[Result "1-0"]
[Round "09"]
[TimeControl "180+1"]
[Date "2022.02.08"]
[WhiteClock "0:00:50"]
[BlackClock "0:00:01"]

1. Nf3 {[%clk 0:02:57]}  d5 {[%clk 0:02:58]} 2. g3 {[%clk 0:02:57]}  Nf6 {[%clk 0:02:58]} 3. Bg2 {[%clk 0:02:56]}  Bg4 {[%clk 0:02:58]} 4. O-O {[%clk 0:02:57]}  Nbd7 {[%clk 0:02:55]} 5. d3 {[%clk 0:02:57]}  e5 {[%clk 0:02:54]} 6. Nbd2 {[%clk 0:02:57]}  Bc5 {[%clk 0:02:50]} 7. e4 {[%clk 0:02:57]}  dxe4 {[%clk 0:02:49]} 8. dxe4 {[%clk 0:02:58]}  a5 {[%clk 0:02:43]} 9. h3 {[%clk 0:02:58]}  Bxf3 {[%clk 0:02:41]} 10. Qxf3 {[%clk 0:02:57]}  O-O {[%clk 0:02:37]} 11. a4 {[%clk 0:02:57]}  Qe7 {[%clk 0:02:32]} 12. Nb3 {[%clk 0:02:56]}  Bb6 {[%clk 0:02:26]} 13. Be3 {[%clk 0:02:56]}  Nc5 {[%clk 0:02:24]} 14. Nd2 {[%clk 0:02:51]}  c6 {[%clk 0:01:34]} 15. Nc4 {[%clk 0:02:44]}  Bc7 {[%clk 0:01:35]} 16. Bg5 {[%clk 0:02:42]}  Ne6 {[%clk 0:01:27]} 17. Bxf6 {[%clk 0:02:42]}  Qxf6 {[%clk 0:01:26]} 18. Qxf6 {[%clk 0:02:42]}  gxf6 {[%clk 0:01:27]} 19. Rfd1 {[%clk 0:02:40]}  Rfd8 {[%clk 0:01:04]} 20. h4 {[%clk 0:02:39]}  b5 {[%clk 0:00:58]} 21. axb5 {[%clk 0:02:31]}  cxb5 {[%clk 0:00:58]} 22. Rxd8+ {[%clk 0:02:31]}  Rxd8 {[%clk 0:00:57]} 23. Nxa5 {[%clk 0:02:31]}  Rd2 {[%clk 0:00:57]} 24. Nc6 {[%clk 0:02:18]}  Bb6 {[%clk 0:00:47]} 25. Ne7+ {[%clk 0:02:18]}  Kf8 {[%clk 0:00:43]} 26. Nf5 {[%clk 0:02:13]}  Bxf2+ {[%clk 0:00:40]} 27. Kh2 {[%clk 0:02:12]}  Ke8 {[%clk 0:00:37]} 28. Ra8+ {[%clk 0:02:07]}  Kd7 {[%clk 0:00:36]} 29. Kh3 {[%clk 0:02:05]}  Rxc2 {[%clk 0:00:34]} 30. Rh8 {[%clk 0:02:04]}  Rxb2 {[%clk 0:00:29]} 31. Rxh7 {[%clk 0:02:04]}  Nd8 {[%clk 0:00:28]} 32. h5 {[%clk 0:01:59]}  b4 {[%clk 0:00:23]} 33. h6 {[%clk 0:01:59]}  b3 {[%clk 0:00:21]} 34. Rh8 {[%clk 0:01:59]}  Rd2 {[%clk 0:00:16]} 35. Rxd8+ {[%clk 0:01:56]}  Kxd8 {[%clk 0:00:16]} 36. h7 {[%clk 0:01:57]}  b2 {[%clk 0:00:15]} 37. h8=Q+ {[%clk 0:01:57]}  Kc7 {[%clk 0:00:15]} 38. Qh6 {[%clk 0:01:40]}  Rd7 {[%clk 0:00:13]} 39. Qxf6 {[%clk 0:01:28]}  b1=Q {[%clk 0:00:13]} 40. Qxe5+ {[%clk 0:01:28]}  Kb7 {[%clk 0:00:11]} 41. Qe8 {[%clk 0:01:21]}  Kc7 {[%clk 0:00:06]} 42. Qe5+ {[%clk 0:01:20]}  Kc6 {[%clk 0:00:05]} 43. Ne7+ {[%clk 0:01:09]}  Kb7 {[%clk 0:00:05]} 44. Qf6 {[%clk 0:01:05]}  Qb6 {[%clk 0:00:04]} 45. e5+ {[%clk 0:01:01]}  Ka6 {[%clk 0:00:03]} 46. Bf1+ {[%clk 0:00:51]}  Ka5 {[%clk 0:00:02]} 47. Nc6+ {[%clk 0:00:51]}  Ka4 {[%clk 0:00:01]} 48. Qf4+ {[%clk 0:00:50]} 1-0


[Site "https://www.chess.com"]

[Event "Early Titled Tuesday Blitz | February 8 2022"]
[White "Politov, Pavel Y."]
[Black "Gontcharov, Vladislav"]
[WhiteFideId "24110515"]
[BlackFideId "4123492"]
[WhiteElo "2090"]
[BlackElo "2503"]
[Result "1/2-1/2"]
[Round "09"]
[TimeControl "180+1"]
[Date "2022.02.08"]
[WhiteClock "0:00:04"]
[BlackClock "0:00:11"]

1. e4 {[%clk 0:03:00]}  e6 {[%clk 0:02:56]} 2. d4 {[%clk 0:02:59]}  d5 {[%clk 0:02:56]} 3. Nc3 {[%clk 0:02:59]}  Bb4 {[%clk 0:02:55]} 4. e5 {[%clk 0:02:59]}  c5 {[%clk 0:02:55]} 5. a3 {[%clk 0:02:59]}  Bxc3+ {[%clk 0:02:55]} 6. bxc3 {[%clk 0:03:00]}  Ne7 {[%clk 0:02:55]} 7. Qg4 {[%clk 0:02:58]}  O-O {[%clk 0:02:53]} 8. Bh6 {[%clk 0:02:51]}  Ng6 {[%clk 0:02:50]} 9. Bd2 {[%clk 0:02:11]}  f5 {[%clk 0:02:42]} 10. Qd1 {[%clk 0:01:57]}  b6 {[%clk 0:02:37]} 11. f4 {[%clk 0:01:50]}  Ba6 {[%clk 0:02:35]} 12. Bxa6 {[%clk 0:01:47]}  Nxa6 {[%clk 0:02:35]} 13. Nf3 {[%clk 0:01:45]}  Rc8 {[%clk 0:02:31]} 14. O-O {[%clk 0:01:42]}  Nb8 {[%clk 0:02:28]} 15. c4 {[%clk 0:01:35]}  dxc4 {[%clk 0:02:24]} 16. dxc5 {[%clk 0:01:33]}  Rxc5 {[%clk 0:02:22]} 17. Bb4 {[%clk 0:01:27]}  Rd5 {[%clk 0:02:22]} 18. Qe2 {[%clk 0:01:24]}  Re8 {[%clk 0:02:16]} 19. Qxc4 {[%clk 0:01:19]}  b5 {[%clk 0:02:11]} 20. Qb3 {[%clk 0:01:15]}  Nxf4 {[%clk 0:02:10]} 21. Qe3 {[%clk 0:01:12]}  Ng6 {[%clk 0:02:01]} 22. Bd6 {[%clk 0:01:08]}  Nc6 {[%clk 0:02:00]} 23. Rad1 {[%clk 0:01:04]}  Qa5 {[%clk 0:01:14]} 24. Rxd5 {[%clk 0:01:00]}  exd5 {[%clk 0:01:14]} 25. Rd1 {[%clk 0:00:58]}  d4 {[%clk 0:01:07]} 26. Nxd4 {[%clk 0:00:54]}  Qb6 {[%clk 0:01:06]} 27. Nxf5 {[%clk 0:00:51]}  Qxe3+ {[%clk 0:01:05]} 28. Nxe3 {[%clk 0:00:48]}  Ncxe5 {[%clk 0:01:05]} 29. Kf2 {[%clk 0:00:43]}  Rc8 {[%clk 0:00:58]} 30. Rd5 {[%clk 0:00:40]}  Nc4 {[%clk 0:00:53]} 31. Nxc4 {[%clk 0:00:36]}  Rxc4 {[%clk 0:00:52]} 32. Rxb5 {[%clk 0:00:34]}  Rxc2+ {[%clk 0:00:52]} 33. Kg3 {[%clk 0:00:32]}  a6 {[%clk 0:00:34]} 34. Rb6 {[%clk 0:00:30]}  h5 {[%clk 0:00:32]} 35. Rxa6 {[%clk 0:00:27]}  h4+ {[%clk 0:00:32]} 36. Kf3 {[%clk 0:00:25]}  Kh7 {[%clk 0:00:29]} 37. a4 {[%clk 0:00:22]}  h3 {[%clk 0:00:20]} 38. gxh3 {[%clk 0:00:19]}  Rc3+ {[%clk 0:00:20]} 39. Kg4 {[%clk 0:00:17]}  Rc4+ {[%clk 0:00:19]} 40. Kf5 {[%clk 0:00:15]}  Nh4+ {[%clk 0:00:19]} 41. Ke6 {[%clk 0:00:12]}  Nf3 {[%clk 0:00:19]} 42. Kd5 {[%clk 0:00:06]}  Rc3 {[%clk 0:00:17]} 43. Ke6 {[%clk 0:00:05]}  Re3+ {[%clk 0:00:17]} 44. Kd7 {[%clk 0:00:04]}  Rd3 {[%clk 0:00:16]} 45. Kc6 {[%clk 0:00:03]}  Rc3+ {[%clk 0:00:16]} 46. Bc5 {[%clk 0:00:03]}  Nxh2 {[%clk 0:00:15]} 47. Rb6 {[%clk 0:00:02]}  Nf3 {[%clk 0:00:12]} 48. a5 {[%clk 0:00:02]}  Ne5+ {[%clk 0:00:12]} 49. Kd5 {[%clk 0:00:02]}  Nd7 {[%clk 0:00:11]} 50. Rc6 {[%clk 0:00:02]}  Nxc5 {[%clk 0:00:10]} 51. Rxc5 {[%clk 0:00:03]}  Rxh3 {[%clk 0:00:11]} 52. a6 {[%clk 0:00:02]}  Ra3 {[%clk 0:00:11]} 53. Rc6 {[%clk 0:00:02]}  g6 {[%clk 0:00:11]} 54. Kd6 {[%clk 0:00:02]}  Kh6 {[%clk 0:00:11]} 55. Kc7 {[%clk 0:00:03]}  Kh5 {[%clk 0:00:11]} 56. Kb7 {[%clk 0:00:04]}  g5 {[%clk 0:00:11]} 57. a7 {[%clk 0:00:04]}  Rxa7+ {[%clk 0:00:10]} 58. Kxa7 {[%clk 0:00:04]}  g4 {[%clk 0:00:11]} 59. Rc8 {[%clk 0:00:04]}  g3 {[%clk 0:00:11]} 60. Rh8+ {[%clk 0:00:04]}  Kg4 {[%clk 0:00:11]} 61. Rg8+ {[%clk 0:00:04]}  Kf3 {[%clk 0:00:11]} 62. Kb6 {[%clk 0:00:04]}  g2 {[%clk 0:00:12]} 63. Rf8+ {[%clk 0:00:05]}  Ke2 {[%clk 0:00:12]} 64. Rg8 {[%clk 0:00:04]}  Kf2 {[%clk 0:00:12]} 65. Rf8+ {[%clk 0:00:05]}  Ke2 {[%clk 0:00:12]} 66. Rg8 {[%clk 0:00:05]}  Kf2 {[%clk 0:00:12]} 67. Kc5 {[%clk 0:00:03]}  g1=Q {[%clk 0:00:11]} 68. Rxg1 {[%clk 0:00:04]}  Kxg1 {[%clk 0:00:11]} 1/2-1/2


[Site "https://www.chess.com"]

[Event "Early Titled Tuesday Blitz | February 8 2022"]
[White "Ponkratov, Pavel"]
[Black "Rakhmanov, Aleksandr"]
[WhiteFideId "4157800"]
[BlackFideId "4173708"]
[WhiteElo "2487"]
[BlackElo "2500"]
[Result "0-1"]
[Round "09"]
[TimeControl "180+1"]
[Date "2022.02.08"]
[WhiteClock "0:00:41"]
[BlackClock "0:00:08"]

1. d4 {[%clk 0:02:57]}  Nf6 {[%clk 0:02:38]} 2. c4 {[%clk 0:02:57]}  d6 {[%clk 0:02:35]} 3. Nc3 {[%clk 0:02:55]}  e5 {[%clk 0:02:34]} 4. Nf3 {[%clk 0:02:55]}  e4 {[%clk 0:02:33]} 5. Nd2 {[%clk 0:02:54]}  Bf5 {[%clk 0:02:32]} 6. e3 {[%clk 0:02:47]}  c6 {[%clk 0:02:32]} 7. Be2 {[%clk 0:02:46]}  d5 {[%clk 0:02:32]} 8. g4 {[%clk 0:02:45]}  Be6 {[%clk 0:02:28]} 9. g5 {[%clk 0:02:45]}  Nfd7 {[%clk 0:02:27]} 10. cxd5 {[%clk 0:02:46]}  cxd5 {[%clk 0:02:27]} 11. Qb3 {[%clk 0:02:46]}  Nb6 {[%clk 0:02:23]} 12. a4 {[%clk 0:02:45]}  a5 {[%clk 0:02:21]} 13. h4 {[%clk 0:02:21]}  Nc6 {[%clk 0:02:17]} 14. Qb5 {[%clk 0:02:13]}  Bb4 {[%clk 0:02:07]} 15. Na2 {[%clk 0:01:53]}  O-O {[%clk 0:01:57]} 16. Nxb4 {[%clk 0:01:52]}  Nxb4 {[%clk 0:01:51]} 17. Kf1 {[%clk 0:01:37]}  Nc8 {[%clk 0:00:51]} 18. Bd1 {[%clk 0:01:19]}  Nd6 {[%clk 0:00:45]} 19. Qe2 {[%clk 0:01:19]}  f5 {[%clk 0:00:42]} 20. f4 {[%clk 0:01:16]}  exf3 {[%clk 0:00:39]} 21. Nxf3 {[%clk 0:01:16]}  Ne4 {[%clk 0:00:37]} 22. Kg2 {[%clk 0:01:16]}  Qd6 {[%clk 0:00:34]} 23. Ne5 {[%clk 0:01:16]}  Nc6 {[%clk 0:00:31]} 24. Nd3 {[%clk 0:01:02]}  Qg3+ {[%clk 0:00:21]} 25. Kf1 {[%clk 0:01:02]}  f4 {[%clk 0:00:20]} 26. Nxf4 {[%clk 0:01:01]}  Nxd4 {[%clk 0:00:12]} 27. Qg2 {[%clk 0:00:58]}  Rxf4+ {[%clk 0:00:12]} 28. exf4 {[%clk 0:00:58]}  Qd3+ {[%clk 0:00:12]} 29. Ke1 {[%clk 0:00:58]}  Re8 {[%clk 0:00:10]} 30. Ra3 {[%clk 0:00:59]}  Qc4 {[%clk 0:00:09]} 31. Be3 {[%clk 0:00:58]}  Bd7 {[%clk 0:00:08]} 32. Qf1 {[%clk 0:00:56]}  Qb4+ {[%clk 0:00:08]} 33. Rc3 {[%clk 0:00:54]}  Nxc3 {[%clk 0:00:08]} 34. bxc3 {[%clk 0:00:53]}  Rxe3+ {[%clk 0:00:08]} 35. Kf2 {[%clk 0:00:53]}  Qxc3 {[%clk 0:00:09]} 36. Rh2 {[%clk 0:00:48]}  Qd2+ {[%clk 0:00:08]} 37. Kg1 {[%clk 0:00:49]}  Rg3+ {[%clk 0:00:09]} 38. Kh1 {[%clk 0:00:49]}  Qe3 {[%clk 0:00:09]} 39. h5 {[%clk 0:00:47]}  Bf5 {[%clk 0:00:10]} 40. Rb2 {[%clk 0:00:43]}  Rh3+ {[%clk 0:00:08]} 41. Kg2 {[%clk 0:00:43]}  Be4+ {[%clk 0:00:08]} 42. Bf3 {[%clk 0:00:41]}  Rxf3 {[%clk 0:00:08]} 0-1


[Site "https://www.chess.com"]

[Event "Early Titled Tuesday Blitz | February 8 2022"]
[White "Praslov, Andrey"]
[Black "Komiagina, Maria"]
[WhiteFideId "4147863"]
[BlackFideId "4153987"]
[WhiteElo "2370"]
[BlackElo "1945"]
[Result "0-1"]
[Round "09"]
[TimeControl "180+1"]
[Date "2022.02.08"]
[WhiteClock "0:00:03"]
[BlackClock "0:00:17"]

1. d4 {[%clk 0:03:00]}  Nf6 {[%clk 0:02:58]} 2. c4 {[%clk 0:03:00]}  e6 {[%clk 0:02:58]} 3. Nc3 {[%clk 0:03:00]}  d5 {[%clk 0:02:58]} 4. cxd5 {[%clk 0:03:00]}  exd5 {[%clk 0:02:58]} 5. Bg5 {[%clk 0:02:59]}  c6 {[%clk 0:02:56]} 6. e3 {[%clk 0:03:00]}  Be7 {[%clk 0:02:56]} 7. Bd3 {[%clk 0:03:00]}  h6 {[%clk 0:02:55]} 8. Bh4 {[%clk 0:02:59]}  O-O {[%clk 0:02:50]} 9. Qc2 {[%clk 0:02:56]}  Na6 {[%clk 0:02:44]} 10. a3 {[%clk 0:02:54]}  Nc7 {[%clk 0:02:43]} 11. Nf3 {[%clk 0:02:53]}  Re8 {[%clk 0:02:18]} 12. O-O {[%clk 0:02:41]}  Ne4 {[%clk 0:02:16]} 13. Bxe7 {[%clk 0:02:32]}  Qxe7 {[%clk 0:02:12]} 14. Bxe4 {[%clk 0:02:27]}  dxe4 {[%clk 0:02:10]} 15. Ne5 {[%clk 0:02:05]}  f5 {[%clk 0:02:00]} 16. f3 {[%clk 0:01:15]}  exf3 {[%clk 0:01:59]} 17. Rxf3 {[%clk 0:01:16]}  Be6 {[%clk 0:01:59]} 18. Raf1 {[%clk 0:01:14]}  Rad8 {[%clk 0:01:57]} 19. Rg3 {[%clk 0:01:04]}  c5 {[%clk 0:01:50]} 20. Ne2 {[%clk 0:01:01]}  cxd4 {[%clk 0:01:43]} 21. exd4 {[%clk 0:01:02]}  Nd5 {[%clk 0:01:35]} 22. Qd2 {[%clk 0:00:42]}  Kh7 {[%clk 0:01:31]} 23. Qd3 {[%clk 0:00:39]}  Bc8 {[%clk 0:00:57]} 24. Qf3 {[%clk 0:00:10]}  Nf6 {[%clk 0:00:52]} 25. h4 {[%clk 0:00:07]}  Ne4 {[%clk 0:00:49]} 26. Rh3 {[%clk 0:00:06]}  Nd2 {[%clk 0:00:36]} 27. Qg3 {[%clk 0:00:06]}  Nxf1 {[%clk 0:00:35]} 28. Qg6+ {[%clk 0:00:06]}  Kg8 {[%clk 0:00:34]} 29. Kxf1 {[%clk 0:00:07]}  Qe6 {[%clk 0:00:28]} 30. Qg3 {[%clk 0:00:03]}  f4 {[%clk 0:00:21]} 31. Nxf4 {[%clk 0:00:03]}  Rf8 {[%clk 0:00:20]} 32. Kg1 {[%clk 0:00:03]}  Qd6 {[%clk 0:00:17]} 0-1


[Site "https://www.chess.com"]